[Event "Titled Tuesday Blitz November 08 Late 2022"]
[White "Fier, Alexandr"]
[Black "Bortnyk, Mykola"]
[WhiteFideId "2107139"]
[BlackFideId "14120836"]
[WhiteElo "2617"]
[BlackElo "2582"]
[Result "1-0"]
[Round "08"]
[TimeControl "180+1"]
[Date "2022.11.08"]
[WhiteClock "0:00:58"]
[BlackClock "0:00:06"]

1. c4 {[%clk 0:03:00]}  e5 {[%clk 0:02:59]} 2. Nc3 {[%clk 0:03:01]}  Nf6 {[%clk 0:02:57]} 3. Nf3 {[%clk 0:03:00]}  e4 {[%clk 0:02:58]} 4. Ng5 {[%clk 0:03:00]}  b5 {[%clk 0:02:58]} 5. d3 {[%clk 0:02:59]}  exd3 {[%clk 0:02:57]} 6. Qxd3 {[%clk 0:02:59]}  bxc4 {[%clk 0:02:54]} 7. Qxc4 {[%clk 0:02:58]}  d5 {[%clk 0:02:52]} 8. Qb3 {[%clk 0:02:58]}  h6 {[%clk 0:02:42]} 9. Nf3 {[%clk 0:02:57]}  c5 {[%clk 0:02:30]} 10. e3 {[%clk 0:02:57]}  c4 {[%clk 0:02:30]} 11. Qd1 {[%clk 0:02:55]}  Nc6 {[%clk 0:02:28]} 12. Be2 {[%clk 0:02:55]}  Bd6 {[%clk 0:02:24]} 13. O-O {[%clk 0:02:56]}  O-O {[%clk 0:02:24]} 14. b3 {[%clk 0:02:57]}  Be6 {[%clk 0:02:18]} 15. Bb2 {[%clk 0:02:54]}  Qe7 {[%clk 0:02:13]} 16. Nb5 {[%clk 0:02:54]}  Bc5 {[%clk 0:02:08]} 17. Nbd4 {[%clk 0:02:54]}  Nxd4 {[%clk 0:02:09]} 18. Nxd4 {[%clk 0:02:55]}  Ne4 {[%clk 0:02:02]} 19. Rc1 {[%clk 0:02:49]}  Rfd8 {[%clk 0:01:51]} 20. Nc6 {[%clk 0:02:48]}  Qg5 {[%clk 0:01:46]} 21. Nxd8 {[%clk 0:02:48]}  Rxd8 {[%clk 0:01:39]} 22. Bf3 {[%clk 0:02:45]}  Rd6 {[%clk 0:01:13]} 23. Qe2 {[%clk 0:02:21]}  Bh3 {[%clk 0:01:12]} 24. Rfd1 {[%clk 0:02:00]}  Rg6 {[%clk 0:01:03]} 25. g3 {[%clk 0:02:00]}  Re6 {[%clk 0:00:53]} 26. Bd4 {[%clk 0:01:51]}  Ba3 {[%clk 0:00:50]} 27. Rc2 {[%clk 0:01:47]}  cxb3 {[%clk 0:00:35]} 28. axb3 {[%clk 0:01:46]}  Qf5 {[%clk 0:00:35]} 29. Bg2 {[%clk 0:01:25]}  Bxg2 {[%clk 0:00:33]} 30. Kxg2 {[%clk 0:01:26]}  Ng5 {[%clk 0:00:33]} 31. h4 {[%clk 0:01:22]}  Qh3+ {[%clk 0:00:25]} 32. Kg1 {[%clk 0:01:22]}  Ne4 {[%clk 0:00:24]} 33. Qf3 {[%clk 0:01:19]}  Rg6 {[%clk 0:00:25]} 34. Be5 {[%clk 0:01:14]}  Qe6 {[%clk 0:00:14]} 35. Bb8 {[%clk 0:01:09]}  a5 {[%clk 0:00:13]} 36. Qf4 {[%clk 0:01:06]}  Qh3 {[%clk 0:00:09]} 37. Rxd5 {[%clk 0:00:59]}  Nf6 {[%clk 0:00:05]} 38. Rd8+ {[%clk 0:00:58]}  Kh7 {[%clk 0:00:06]} 39. Rcc8 {[%clk 0:00:58]} 1-0


[Site "https://www.chess.com"]

[Event "Titled Tuesday Blitz November 08 Late 2022"]
[White "Gareyev, Timur"]
[Black "Sourath Biswas"]
[WhiteFideId "14200937"]
[BlackFideId "35091484"]
[WhiteElo "2552"]
[BlackElo "2164"]
[Result "1-0"]
[Round "08"]
[TimeControl "180+1"]
[Date "2022.11.08"]
[WhiteClock "0:00:05"]
[BlackClock "0:00:05"]

1. c4 {[%clk 0:02:43]}  Nf6 {[%clk 0:02:55]} 2. Nc3 {[%clk 0:02:38]}  g6 {[%clk 0:02:56]} 3. e4 {[%clk 0:02:22]}  d6 {[%clk 0:02:54]} 4. d4 {[%clk 0:02:20]}  Bg7 {[%clk 0:02:54]} 5. Be2 {[%clk 0:02:19]}  O-O {[%clk 0:02:54]} 6. Be3 {[%clk 0:02:10]}  e5 {[%clk 0:02:32]} 7. d5 {[%clk 0:02:08]}  Na6 {[%clk 0:02:30]} 8. g4 {[%clk 0:02:02]}  Nd7 {[%clk 0:02:29]} 9. h4 {[%clk 0:01:59]}  f5 {[%clk 0:02:29]} 10. gxf5 {[%clk 0:01:43]}  gxf5 {[%clk 0:02:30]} 11. Nf3 {[%clk 0:01:42]}  Ndc5 {[%clk 0:02:25]} 12. Rg1 {[%clk 0:01:37]}  f4 {[%clk 0:02:19]} 13. Bd2 {[%clk 0:01:29]}  Kh8 {[%clk 0:02:18]} 14. a3 {[%clk 0:01:26]}  c6 {[%clk 0:02:05]} 15. b4 {[%clk 0:01:24]}  Nd7 {[%clk 0:02:04]} 16. Ng5 {[%clk 0:01:18]}  Nf6 {[%clk 0:02:04]} 17. Qb3 {[%clk 0:01:02]}  Qe7 {[%clk 0:01:21]} 18. O-O-O {[%clk 0:00:53]}  h6 {[%clk 0:01:13]} 19. Nf3 {[%clk 0:00:41]}  Bd7 {[%clk 0:01:00]} 20. dxc6 {[%clk 0:00:29]}  bxc6 {[%clk 0:00:59]} 21. c5 {[%clk 0:00:29]}  Be6 {[%clk 0:00:51]} 22. Qa4 {[%clk 0:00:22]}  dxc5 {[%clk 0:00:21]} 23. Nxe5 {[%clk 0:00:19]}  Bf7 {[%clk 0:00:15]} 24. Nxf7+ {[%clk 0:00:16]}  Rxf7 {[%clk 0:00:16]} 25. Bxa6 {[%clk 0:00:14]}  Nxe4 {[%clk 0:00:12]} 26. Rge1 {[%clk 0:00:09]}  Nxc3 {[%clk 0:00:12]} 27. Bxc3 {[%clk 0:00:09]}  Qc7 {[%clk 0:00:07]} 28. Qc2 {[%clk 0:00:08]}  Raf8 {[%clk 0:00:05]} 29. Bc4 {[%clk 0:00:08]}  Re7 {[%clk 0:00:05]} 30. Qg6 {[%clk 0:00:05]}  Bxc3 {[%clk 0:00:05]} 31. Qxh6+ {[%clk 0:00:05]} 1-0


[Site "https://www.chess.com"]

[Event "Titled Tuesday Blitz November 08 Late 2022"]
[White "Gasparyan, David"]
[Black "Aqib Javaid Butt"]
[WhiteFideId "13311980"]
[BlackFideId "7801262"]
[WhiteElo "2294"]
[BlackElo "1659"]
[Result "0-1"]
[Round "08"]
[TimeControl "180+1"]
[Date "2022.11.09"]
[WhiteClock "0:00:42"]
[BlackClock "0:00:44"]

1. d4 {[%clk 0:02:59]}  d5 {[%clk 0:02:59]} 2. Nf3 {[%clk 0:02:53]}  c6 {[%clk 0:03:00]} 3. Bf4 {[%clk 0:02:52]}  Nf6 {[%clk 0:03:00]} 4. e3 {[%clk 0:02:51]}  Bg4 {[%clk 0:03:01]} 5. Bd3 {[%clk 0:02:51]}  Nbd7 {[%clk 0:03:01]} 6. Nbd2 {[%clk 0:02:49]}  g6 {[%clk 0:02:59]} 7. h3 {[%clk 0:02:49]}  Bxf3 {[%clk 0:02:57]} 8. Qxf3 {[%clk 0:02:49]}  Bg7 {[%clk 0:02:58]} 9. g4 {[%clk 0:02:46]}  O-O {[%clk 0:02:58]} 10. h4 {[%clk 0:02:46]}  Re8 {[%clk 0:02:49]} 11. Qg3 {[%clk 0:02:38]}  h5 {[%clk 0:02:43]} 12. f3 {[%clk 0:02:33]}  c5 {[%clk 0:02:10]} 13. c3 {[%clk 0:02:32]}  cxd4 {[%clk 0:02:10]} 14. cxd4 {[%clk 0:02:30]}  e6 {[%clk 0:02:04]} 15. Bd6 {[%clk 0:02:24]}  e5 {[%clk 0:02:02]} 16. dxe5 {[%clk 0:02:20]}  Qb6 {[%clk 0:01:55]} 17. exf6 {[%clk 0:02:17]}  Qxe3+ {[%clk 0:01:55]} 18. Kd1 {[%clk 0:02:14]}  Qxd3 {[%clk 0:01:49]} 19. fxg7 {[%clk 0:02:12]}  Rac8 {[%clk 0:01:29]} 20. Bc7 {[%clk 0:01:56]}  Re2 {[%clk 0:01:18]} 21. Qf4 {[%clk 0:01:40]}  Rxc7 {[%clk 0:01:17]} 22. Qh6 {[%clk 0:01:40]}  Rxd2+ {[%clk 0:01:01]} 23. Qxd2 {[%clk 0:01:39]}  Qxf3+ {[%clk 0:01:02]} 24. Qe2 {[%clk 0:01:06]}  Qxh1+ {[%clk 0:01:01]} 25. Qe1 {[%clk 0:01:00]}  Qxe1+ {[%clk 0:00:59]} 26. Kxe1 {[%clk 0:01:01]}  hxg4 {[%clk 0:00:58]} 27. Rd1 {[%clk 0:00:59]}  Nf6 {[%clk 0:00:58]} 28. Kf2 {[%clk 0:00:57]}  Kxg7 {[%clk 0:00:58]} 29. Kg3 {[%clk 0:00:57]}  Re7 {[%clk 0:00:58]} 30. Rd3 {[%clk 0:00:56]}  Re4 {[%clk 0:00:55]} 31. a3 {[%clk 0:00:55]}  Nh5+ {[%clk 0:00:50]} 32. Kg2 {[%clk 0:00:50]}  Nf4+ {[%clk 0:00:48]} 33. Kg3 {[%clk 0:00:49]}  Nxd3 {[%clk 0:00:49]} 34. b4 {[%clk 0:00:49]}  Ne5 {[%clk 0:00:46]} 35. b5 {[%clk 0:00:48]}  f5 {[%clk 0:00:46]} 36. b6 {[%clk 0:00:48]}  f4+ {[%clk 0:00:46]} 37. Kf2 {[%clk 0:00:48]}  axb6 {[%clk 0:00:45]} 38. a4 {[%clk 0:00:48]}  Rxa4 {[%clk 0:00:43]} 39. Kg2 {[%clk 0:00:47]}  Ra2+ {[%clk 0:00:44]} 40. Kg1 {[%clk 0:00:46]}  Nf3+ {[%clk 0:00:44]} 41. Kf1 {[%clk 0:00:45]}  g3 {[%clk 0:00:43]} 42. h5 {[%clk 0:00:42]}  Rf2# {[%clk 0:00:44]} 0-1


[Site "https://www.chess.com"]

[Event "Titled Tuesday Blitz November 08 Late 2022"]
[White "Girsh, Daniel"]
[Black "Danielyan, Vahe"]
[WhiteFideId "30949190"]
[BlackFideId "13304828"]
[WhiteElo "2075"]
[BlackElo "2423"]
[Result "0-1"]
[Round "08"]
[TimeControl "180+1"]
[Date "2022.11.09"]
[WhiteClock "0:02:00"]
[BlackClock "0:02:24"]

1. d4 {[%clk 0:03:00]}  e6 {[%clk 0:02:59]} 2. c4 {[%clk 0:03:00]}  d5 {[%clk 0:02:57]} 3. Nf3 {[%clk 0:03:00]}  Nf6 {[%clk 0:02:53]} 4. Nc3 {[%clk 0:03:01]}  Bb4 {[%clk 0:02:52]} 5. e3 {[%clk 0:03:01]}  O-O {[%clk 0:02:52]} 6. Bd3 {[%clk 0:03:02]}  c5 {[%clk 0:02:51]} 7. O-O {[%clk 0:03:02]}  Bxc3 {[%clk 0:02:51]} 8. bxc3 {[%clk 0:03:02]}  dxc4 {[%clk 0:02:51]} 9. Bxc4 {[%clk 0:03:02]}  Qc7 {[%clk 0:02:52]} 10. Bd3 {[%clk 0:03:01]}  Nc6 {[%clk 0:02:51]} 11. e4 {[%clk 0:02:58]}  Rd8 {[%clk 0:02:47]} 12. Bb2 {[%clk 0:02:55]}  Ne7 {[%clk 0:02:40]} 13. e5 {[%clk 0:02:50]}  Nfd5 {[%clk 0:02:40]} 14. Bxh7+ {[%clk 0:02:36]}  Kxh7 {[%clk 0:02:41]} 15. Ng5+ {[%clk 0:02:37]}  Kg8 {[%clk 0:02:35]} 16. Qh5 {[%clk 0:02:37]}  Ng6 {[%clk 0:02:35]} 17. h4 {[%clk 0:02:23]}  Ndf4 {[%clk 0:02:35]} 18. Qh7+ {[%clk 0:02:23]}  Kf8 {[%clk 0:02:35]} 19. h5 {[%clk 0:02:23]}  Qe7 {[%clk 0:02:34]} 20. Ne4 {[%clk 0:02:02]}  Ne2+ {[%clk 0:02:23]} 21. Kh1 {[%clk 0:02:00]}  Qh4# {[%clk 0:02:24]} 0-1


[Site "https://www.chess.com"]

[Event "Titled Tuesday Blitz November 08 Late 2022"]
[White "Hajiyev, Kanan"]
[Black "Barria Zuniga, Daniel"]
[WhiteFideId "13404148"]
[BlackFideId "3400816"]
[WhiteElo "2118"]
[BlackElo "2414"]
[Result "0-1"]
[Round "08"]
[TimeControl "180+1"]
[Date "2022.11.09"]
[WhiteClock "0:00:02"]
[BlackClock "0:00:47"]

1. d4 {[%clk 0:03:00]}  g6 {[%clk 0:02:58]} 2. Nf3 {[%clk 0:02:54]}  Bg7 {[%clk 0:02:58]} 3. g3 {[%clk 0:02:54]}  c5 {[%clk 0:02:57]} 4. c3 {[%clk 0:02:52]}  Qc7 {[%clk 0:02:56]} 5. Bg2 {[%clk 0:02:52]}  Nf6 {[%clk 0:02:56]} 6. O-O {[%clk 0:02:52]}  O-O {[%clk 0:02:56]} 7. Bf4 {[%clk 0:02:50]}  d6 {[%clk 0:02:56]} 8. Na3 {[%clk 0:02:42]}  Nbd7 {[%clk 0:02:52]} 9. Qc1 {[%clk 0:02:32]}  a6 {[%clk 0:02:49]} 10. Bh6 {[%clk 0:02:22]}  b5 {[%clk 0:02:44]} 11. Bxg7 {[%clk 0:02:22]}  Kxg7 {[%clk 0:02:45]} 12. Nc2 {[%clk 0:02:20]}  Bb7 {[%clk 0:02:45]} 13. Re1 {[%clk 0:02:16]}  Rac8 {[%clk 0:02:44]} 14. a3 {[%clk 0:02:15]}  Rfe8 {[%clk 0:02:44]} 15. Qg5 {[%clk 0:02:12]}  h6 {[%clk 0:02:43]} 16. Qd2 {[%clk 0:02:05]}  Be4 {[%clk 0:02:38]} 17. Rac1 {[%clk 0:01:59]}  Qb7 {[%clk 0:02:37]} 18. Nh4 {[%clk 0:01:57]}  Bxg2 {[%clk 0:02:36]} 19. Nxg2 {[%clk 0:01:58]}  Nb6 {[%clk 0:02:36]} 20. Nce3 {[%clk 0:01:50]}  Rc7 {[%clk 0:02:28]} 21. Red1 {[%clk 0:01:49]}  cxd4 {[%clk 0:02:13]} 22. Qxd4 {[%clk 0:01:43]}  Rec8 {[%clk 0:02:08]} 23. Nh4 {[%clk 0:01:41]}  Nc4 {[%clk 0:01:40]} 24. Rc2 {[%clk 0:01:31]}  Qe4 {[%clk 0:01:35]} 25. Qxe4 {[%clk 0:01:16]}  Nxe4 {[%clk 0:01:36]} 26. Nd5 {[%clk 0:01:11]}  Rb7 {[%clk 0:01:34]} 27. Nf3 {[%clk 0:00:57]}  e6 {[%clk 0:01:28]} 28. Nb4 {[%clk 0:00:52]}  a5 {[%clk 0:01:27]} 29. Nd3 {[%clk 0:00:53]}  d5 {[%clk 0:01:27]} 30. Nfe5 {[%clk 0:00:51]}  f6 {[%clk 0:01:21]} 31. Nf3 {[%clk 0:00:40]}  g5 {[%clk 0:01:19]} 32. g4 {[%clk 0:00:37]}  Kf7 {[%clk 0:01:18]} 33. Kg2 {[%clk 0:00:36]}  e5 {[%clk 0:01:16]} 34. h4 {[%clk 0:00:31]}  Ke6 {[%clk 0:01:16]} 35. hxg5 {[%clk 0:00:32]}  hxg5 {[%clk 0:01:16]} 36. Rh1 {[%clk 0:00:32]}  Rcc7 {[%clk 0:01:12]} 37. Rh6 {[%clk 0:00:32]}  Rh7 {[%clk 0:01:08]} 38. Rxh7 {[%clk 0:00:25]}  Rxh7 {[%clk 0:01:09]} 39. Nde1 {[%clk 0:00:20]}  f5 {[%clk 0:01:07]} 40. gxf5+ {[%clk 0:00:16]}  Kxf5 {[%clk 0:01:08]} 41. Nh2 {[%clk 0:00:11]}  Nxf2 {[%clk 0:01:02]} 42. Nf1 {[%clk 0:00:11]}  Ng4 {[%clk 0:01:01]} 43. Kf3 {[%clk 0:00:08]}  e4+ {[%clk 0:00:55]} 44. Kg3 {[%clk 0:00:08]}  Rh1 {[%clk 0:00:48]} 45. Kg2 {[%clk 0:00:02]}  Rxf1 {[%clk 0:00:47]} 0-1


[Site "https://www.chess.com"]

[Event "Titled Tuesday Blitz November 08 Late 2022"]
[White "Hansen, Eric"]
[Black "Przybylski, Wojciech"]
[WhiteFideId "2606771"]
[BlackFideId "1117599"]
[WhiteElo "2568"]
[BlackElo "2221"]
[Result "1-0"]
[Round "08"]
[TimeControl "180+1"]
[Date "2022.11.09"]
[WhiteClock "0:00:12"]
[BlackClock "0:00:01"]

1. d4 {[%clk 0:03:00]}  Nf6 {[%clk 0:02:57]} 2. c4 {[%clk 0:03:01]}  e6 {[%clk 0:02:57]} 3. Nc3 {[%clk 0:03:01]}  Bb4 {[%clk 0:02:56]} 4. e3 {[%clk 0:03:02]}  O-O {[%clk 0:02:55]} 5. Ne2 {[%clk 0:03:02]}  d5 {[%clk 0:02:55]} 6. a3 {[%clk 0:03:03]}  Bd6 {[%clk 0:02:55]} 7. cxd5 {[%clk 0:03:03]}  exd5 {[%clk 0:02:55]} 8. Ng3 {[%clk 0:03:04]}  c6 {[%clk 0:02:54]} 9. Bd3 {[%clk 0:03:02]}  Re8 {[%clk 0:02:55]} 10. O-O {[%clk 0:03:02]}  Nbd7 {[%clk 0:02:52]} 11. f3 {[%clk 0:03:02]}  Qc7 {[%clk 0:02:50]} 12. e4 {[%clk 0:02:59]}  Bxg3 {[%clk 0:02:39]} 13. hxg3 {[%clk 0:02:59]}  Qxg3 {[%clk 0:02:36]} 14. e5 {[%clk 0:02:56]}  Nh5 {[%clk 0:02:34]} 15. f4 {[%clk 0:02:35]}  Qh4 {[%clk 0:02:22]} 16. Be3 {[%clk 0:02:27]}  Ng3 {[%clk 0:02:15]} 17. Rf3 {[%clk 0:02:27]}  Nf8 {[%clk 0:02:03]} 18. Qe1 {[%clk 0:01:43]}  Qh1+ {[%clk 0:01:50]} 19. Kf2 {[%clk 0:01:43]}  Qxe1+ {[%clk 0:01:50]} 20. Kxe1 {[%clk 0:01:44]}  Nf5 {[%clk 0:01:38]} 21. Bf2 {[%clk 0:01:45]}  h5 {[%clk 0:01:36]} 22. Kd2 {[%clk 0:01:45]}  g6 {[%clk 0:01:31]} 23. Rh1 {[%clk 0:01:39]}  Nh6 {[%clk 0:01:28]} 24. Bf1 {[%clk 0:01:27]}  Bg4 {[%clk 0:01:26]} 25. Rg3 {[%clk 0:01:28]}  Nf5 {[%clk 0:01:24]} 26. Rd3 {[%clk 0:01:28]}  Ne6 {[%clk 0:01:20]} 27. g3 {[%clk 0:01:27]}  Nh6 {[%clk 0:01:15]} 28. Na4 {[%clk 0:01:25]}  Bf5 {[%clk 0:01:07]} 29. Rb3 {[%clk 0:01:25]}  b5 {[%clk 0:01:06]} 30. Nc3 {[%clk 0:01:24]}  Ng4 {[%clk 0:01:02]} 31. Bg1 {[%clk 0:01:23]}  a5 {[%clk 0:01:01]} 32. Nd1 {[%clk 0:01:22]}  Be4 {[%clk 0:00:59]} 33. Rh4 {[%clk 0:01:20]}  Ng7 {[%clk 0:00:55]} 34. Be2 {[%clk 0:01:14]}  Nf5 {[%clk 0:00:53]} 35. Rxg4 {[%clk 0:00:58]}  hxg4 {[%clk 0:00:53]} 36. Bxg4 {[%clk 0:00:59]}  Kg7 {[%clk 0:00:42]} 37. Be2 {[%clk 0:00:51]}  Rh8 {[%clk 0:00:30]} 38. g4 {[%clk 0:00:51]}  Ne7 {[%clk 0:00:27]} 39. Nf2 {[%clk 0:00:45]}  f6 {[%clk 0:00:22]} 40. exf6+ {[%clk 0:00:39]}  Kxf6 {[%clk 0:00:22]} 41. Re3 {[%clk 0:00:40]}  Rae8 {[%clk 0:00:16]} 42. Rc3 {[%clk 0:00:38]}  Kf7 {[%clk 0:00:15]} 43. Re3 {[%clk 0:00:38]}  Nc8 {[%clk 0:00:14]} 44. Rc3 {[%clk 0:00:36]}  Re6 {[%clk 0:00:13]} 45. Nxe4 {[%clk 0:00:35]}  dxe4 {[%clk 0:00:12]} 46. a4 {[%clk 0:00:31]}  Rd8 {[%clk 0:00:09]} 47. axb5 {[%clk 0:00:30]}  cxb5 {[%clk 0:00:09]} 48. Bxb5 {[%clk 0:00:31]}  Ne7 {[%clk 0:00:06]} 49. Bc4 {[%clk 0:00:26]}  Nd5 {[%clk 0:00:05]} 50. Ra3 {[%clk 0:00:27]}  Red6 {[%clk 0:00:04]} 51. Rxa5 {[%clk 0:00:26]}  Ke8 {[%clk 0:00:03]} 52. Bh2 {[%clk 0:00:19]}  Nf6 {[%clk 0:00:02]} 53. g5 {[%clk 0:00:15]}  Rxd4+ {[%clk 0:00:01]} 54. Kc3 {[%clk 0:00:16]}  Ng4 {[%clk 0:00:01]} 55. Bg1 {[%clk 0:00:16]}  Rd1 {[%clk 0:00:02]} 56. Bc5 {[%clk 0:00:12]}  Rc1+ {[%clk 0:00:01]} 57. Kb4 {[%clk 0:00:12]} 1-0


[Site "https://www.chess.com"]

[Event "Titled Tuesday Blitz November 08 Late 2022"]
[White "Hoffmann, Asa"]
[Black "Lopez Martinez, Josep Manuel"]
[WhiteFideId "2001470"]
[BlackFideId "2212943"]
[WhiteElo "2117"]
[BlackElo "2471"]
[Result "0-1"]
[Round "08"]
[TimeControl "180+1"]
[Date "2022.11.09"]
[WhiteClock "0:00:28"]
[BlackClock "0:00:57"]

1. d4 {[%clk 0:02:54]}  d5 {[%clk 0:02:58]} 2. Bg5 {[%clk 0:02:50]}  c6 {[%clk 0:02:56]} 3. e3 {[%clk 0:02:50]}  Qb6 {[%clk 0:02:54]} 4. b3 {[%clk 0:02:49]}  h6 {[%clk 0:02:49]} 5. Bh4 {[%clk 0:02:49]}  e5 {[%clk 0:02:49]} 6. Nf3 {[%clk 0:02:48]}  Nd7 {[%clk 0:02:44]} 7. Be2 {[%clk 0:02:47]}  Bd6 {[%clk 0:02:41]} 8. O-O {[%clk 0:02:44]}  e4 {[%clk 0:02:41]} 9. Nfd2 {[%clk 0:02:44]}  Ne7 {[%clk 0:02:35]} 10. c4 {[%clk 0:02:43]}  Qc7 {[%clk 0:02:33]} 11. Bg3 {[%clk 0:02:42]}  Bxg3 {[%clk 0:02:32]} 12. fxg3 {[%clk 0:02:39]}  Nf6 {[%clk 0:02:31]} 13. Nc3 {[%clk 0:02:37]}  h5 {[%clk 0:02:24]} 14. Rc1 {[%clk 0:02:35]}  Qd8 {[%clk 0:02:21]} 15. Rf2 {[%clk 0:02:18]}  h4 {[%clk 0:02:06]} 16. gxh4 {[%clk 0:02:13]}  Rxh4 {[%clk 0:02:05]} 17. h3 {[%clk 0:02:12]}  a6 {[%clk 0:02:00]} 18. Qf1 {[%clk 0:02:05]}  Be6 {[%clk 0:01:43]} 19. Rf4 {[%clk 0:01:57]}  Rh7 {[%clk 0:01:40]} 20. Nd1 {[%clk 0:01:48]}  Ng6 {[%clk 0:01:39]} 21. Rf2 {[%clk 0:01:46]}  Qd6 {[%clk 0:01:35]} 22. Rf4 {[%clk 0:01:23]}  Nxf4 {[%clk 0:01:26]} 23. exf4 {[%clk 0:01:23]}  dxc4 {[%clk 0:01:26]} 24. Nxc4 {[%clk 0:01:17]}  Qxd4+ {[%clk 0:01:26]} 25. Nf2 {[%clk 0:01:15]}  e3 {[%clk 0:01:20]} 26. Nd3 {[%clk 0:01:07]}  Ne4 {[%clk 0:01:14]} 27. f5 {[%clk 0:01:03]}  Ng3 {[%clk 0:01:07]} 28. fxe6 {[%clk 0:00:56]}  Nxf1 {[%clk 0:01:07]} 29. exf7+ {[%clk 0:00:56]}  Kxf7 {[%clk 0:01:06]} 30. Rxf1+ {[%clk 0:00:56]}  Kg8 {[%clk 0:01:06]} 31. Rf3 {[%clk 0:00:46]}  Rf8 {[%clk 0:01:02]} 32. Rxe3 {[%clk 0:00:44]}  Re8 {[%clk 0:01:02]} 33. Kf2 {[%clk 0:00:36]}  b5 {[%clk 0:01:00]} 34. Nce5 {[%clk 0:00:35]}  Rh6 {[%clk 0:00:59]} 35. Nf3 {[%clk 0:00:28]}  Qxe3+ {[%clk 0:00:57]} 0-1


[Site "https://www.chess.com"]

[Event "Titled Tuesday Blitz November 08 Late 2022"]
[White "Holt, Conrad"]
[Black "Preotu, Razvan"]
[WhiteFideId "2034387"]
[BlackFideId "2613280"]
[WhiteElo "2592"]
[BlackElo "2407"]
[Result "0-1"]
[Round "08"]
[TimeControl "180+1"]
[Date "2022.11.08"]
[WhiteClock "0:00:05"]
[BlackClock "0:00:06"]

1. d4 {[%clk 0:02:22]}  Nf6 {[%clk 0:02:58]} 2. c4 {[%clk 0:02:23]}  g6 {[%clk 0:02:58]} 3. Nc3 {[%clk 0:02:23]}  d5 {[%clk 0:02:58]} 4. e3 {[%clk 0:02:21]}  Bg7 {[%clk 0:02:58]} 5. Qb3 {[%clk 0:02:22]}  e6 {[%clk 0:02:51]} 6. Qa3 {[%clk 0:02:21]}  c6 {[%clk 0:02:45]} 7. b3 {[%clk 0:02:16]}  a5 {[%clk 0:02:44]} 8. Nf3 {[%clk 0:02:16]}  Na6 {[%clk 0:02:44]} 9. Be2 {[%clk 0:02:13]}  Nb4 {[%clk 0:02:44]} 10. Qb2 {[%clk 0:02:14]}  c5 {[%clk 0:02:19]} 11. O-O {[%clk 0:02:11]}  O-O {[%clk 0:02:13]} 12. Rd1 {[%clk 0:02:07]}  Ne4 {[%clk 0:02:04]} 13. Bd2 {[%clk 0:01:55]}  cxd4 {[%clk 0:01:53]} 14. exd4 {[%clk 0:01:54]}  Nxd2 {[%clk 0:01:52]} 15. Qxd2 {[%clk 0:01:52]}  Nc6 {[%clk 0:01:33]} 16. Rac1 {[%clk 0:01:45]}  dxc4 {[%clk 0:01:23]} 17. Bxc4 {[%clk 0:01:39]}  Qb6 {[%clk 0:00:53]} 18. d5 {[%clk 0:01:33]}  exd5 {[%clk 0:00:53]} 19. Nxd5 {[%clk 0:01:32]}  Qa7 {[%clk 0:00:54]} 20. Qf4 {[%clk 0:00:56]}  Bf5 {[%clk 0:00:51]} 21. Ne3 {[%clk 0:00:53]}  Qb8 {[%clk 0:00:35]} 22. Qxb8 {[%clk 0:00:50]}  Raxb8 {[%clk 0:00:36]} 23. Nxf5 {[%clk 0:00:50]}  gxf5 {[%clk 0:00:37]} 24. Rd7 {[%clk 0:00:49]}  Nb4 {[%clk 0:00:31]} 25. a4 {[%clk 0:00:44]}  Bf6 {[%clk 0:00:24]} 26. g3 {[%clk 0:00:39]}  Kg7 {[%clk 0:00:24]} 27. Rcd1 {[%clk 0:00:36]}  b6 {[%clk 0:00:24]} 28. R1d6 {[%clk 0:00:35]}  Rbd8 {[%clk 0:00:22]} 29. Kg2 {[%clk 0:00:31]}  Rxd7 {[%clk 0:00:22]} 30. Rxd7 {[%clk 0:00:31]}  Na2 {[%clk 0:00:18]} 31. Rb7 {[%clk 0:00:25]}  Nc3 {[%clk 0:00:18]} 32. Rxb6 {[%clk 0:00:24]}  Re8 {[%clk 0:00:18]} 33. Ra6 {[%clk 0:00:18]}  Bd8 {[%clk 0:00:17]} 34. Ra8 {[%clk 0:00:16]}  Kf8 {[%clk 0:00:17]} 35. Nd4 {[%clk 0:00:15]}  f4 {[%clk 0:00:12]} 36. Nf5 {[%clk 0:00:15]}  Bc7 {[%clk 0:00:06]} 37. Ra7 {[%clk 0:00:14]}  Rc8 {[%clk 0:00:02]} 38. Ba6 {[%clk 0:00:13]}  Bb6 {[%clk 0:00:02]} 39. Rxf7+ {[%clk 0:00:13]}  Kxf7 {[%clk 0:00:03]} 40. Bxc8 {[%clk 0:00:13]}  Kf6 {[%clk 0:00:03]} 41. Nh4 {[%clk 0:00:13]}  fxg3 {[%clk 0:00:03]} 42. hxg3 {[%clk 0:00:13]}  Ne4 {[%clk 0:00:04]} 43. f3 {[%clk 0:00:12]}  Nc5 {[%clk 0:00:04]} 44. f4 {[%clk 0:00:10]}  Nxb3 {[%clk 0:00:04]} 45. Bd7 {[%clk 0:00:10]}  Nc5 {[%clk 0:00:04]} 46. Bb5 {[%clk 0:00:10]}  Ne4 {[%clk 0:00:04]} 47. Kf3 {[%clk 0:00:10]}  Nc3 {[%clk 0:00:04]} 48. Bc6 {[%clk 0:00:10]}  h6 {[%clk 0:00:05]} 49. Ng2 {[%clk 0:00:09]}  Ke6 {[%clk 0:00:04]} 50. Ne1 {[%clk 0:00:09]}  Kd6 {[%clk 0:00:04]} 51. Be8 {[%clk 0:00:09]}  Ke7 {[%clk 0:00:05]} 52. Bb5 {[%clk 0:00:09]}  Nxb5 {[%clk 0:00:05]} 53. axb5 {[%clk 0:00:09]}  a4 {[%clk 0:00:04]} 54. Nc2 {[%clk 0:00:09]}  Kd6 {[%clk 0:00:02]} 55. Ke4 {[%clk 0:00:08]}  Kc5 {[%clk 0:00:03]} 56. f5 {[%clk 0:00:08]}  Kxb5 {[%clk 0:00:03]} 57. Kd5 {[%clk 0:00:08]}  Bc5 {[%clk 0:00:03]} 58. f6 {[%clk 0:00:09]}  a3 {[%clk 0:00:03]} 59. g4 {[%clk 0:00:08]}  a2 {[%clk 0:00:04]} 60. Ke6 {[%clk 0:00:07]}  Kc4 {[%clk 0:00:04]} 61. Kf5 {[%clk 0:00:05]}  Kc3 {[%clk 0:00:04]} 62. Na1 {[%clk 0:00:04]}  Kb2 {[%clk 0:00:04]} 63. Kg6 {[%clk 0:00:05]}  Kxa1 {[%clk 0:00:04]} 64. Kxh6 {[%clk 0:00:05]}  Kb2 {[%clk 0:00:04]} 65. g5 {[%clk 0:00:06]}  a1=Q {[%clk 0:00:05]} 66. g6 {[%clk 0:00:07]}  Qf1 {[%clk 0:00:04]} 67. g7 {[%clk 0:00:05]}  Qxf6+ {[%clk 0:00:05]} 68. Kh7 {[%clk 0:00:06]}  Qf7 {[%clk 0:00:05]} 69. Kh6 {[%clk 0:00:04]}  Be3+ {[%clk 0:00:05]} 70. Kh7 {[%clk 0:00:03]}  Bd4 {[%clk 0:00:06]} 71. Kh6 {[%clk 0:00:04]}  Qxg7+ {[%clk 0:00:06]} 72. Kh5 {[%clk 0:00:04]}  Be3 {[%clk 0:00:05]} 73. Kh4 {[%clk 0:00:04]}  Bf4 {[%clk 0:00:05]} 74. Kh3 {[%clk 0:00:05]}  Qg3# {[%clk 0:00:06]} 0-1


[Site "https://www.chess.com"]